[Event "7. Arber-Senioren-Cup 2019"]
[Site "Bodenmais"]
[Date "2019.07.29"]
[Round "3.17"]
[White "Limberg, Siegfried"]
[Black "Braeu, Ludwig"]
[Result "1-0"]
[ECO "A46"]
[WhiteElo "1983"]
[BlackElo "1818"]
[Annotator "NA"]
[PlyCount "107"]
[EventDate "2019.07.27"]
[EventType "swiss"]
[EventCountry "GER"]
[SourceTitle "playchess.com"]
[Source "ChessBase"]
[SourceQuality "1"]
[TimeControl "5400+30"]

1. d4 {[%emt 0:00:00]} Nf6 {[%emt 0:00:00]} 2. Nf3 {[%emt 0:00:00]} c5 {[%emt 0:00:00]} 3. e3 {[%emt 0:00:00]} d5 {[%emt 0:00:00]} 4. b3 {[%emt 0:00:00]} e6 {[%emt 0:00:00]} 5. Bb2 {[%emt 0:00:00]} Nc6 {[%emt 0:00:00]} 6. a3 {[%emt 0:00:00]} a6 {[%emt 0:00:00]} 7. Bd3 {[%emt 0:00:00]} Be7 {[%emt 0:00:00]} 8. Nbd2 {[%emt 0:00:00]} O-O {[%emt 0:00:00]} 9. O-O {[%emt 0:00:00]} b6 {[%emt 0:00:00]} 10. Qe2 {[%emt 0:00:00]} Qc7 {[%emt 0:00:00]} 11. Rac1 {[%emt 0:00:00]} Re8 {[%emt 0:00:00]} 12. Ne5 {[%emt 0:00:00]} cxd4 {[%emt 0:02:07]} 13. exd4 {[%emt 0:00:00]} b5 {[%emt 0:12:56]} 14. f4 {[%emt 0:00:00]} Qb6 {[%emt 0:06:25]} 15. Ndf3 {[%emt 0:00:00]} Bb7 {[%emt 0:01:40]} 16. Kh1 {[%emt 0:13:47]} g6 {[%emt 0:02:11]} 17. Rce1 {[%emt 0:07:12]} Rad8 {[%emt 0:08:56]} 18. c3 {[%emt 0:14:33]} Bf8 {[%emt 0:05:57]} 19. Ng5 {[%emt 0:06:00]} Re7 {[%emt 0:01:15]} 20. g4 {[%emt 0:03:38]} Nxe5 {[%emt 0:05:29]} 21. fxe5 {[%emt 0:00:44]} Ne8 {[%emt 0:03:41]} 22. Qf2 {[%emt 0:01:34]} Rdd7 {[%emt 0:04:14]} 23. Re3 {[%emt 0:01:48]} Bh6 {[%emt 0:02:39]} 24. Qh4 {[%emt 0:04:20]} Bxg5 {[%emt 0:10:03]} 25. Qxg5 {[%emt 0:00:09]} f6 {[%emt 0:00:34]} 26. exf6 {[%emt 0:01:55]} Rf7 {[%emt 0:02:35]} 27. Ref3 {[%emt 0:02:21]} Nd6 {[%emt 0:11:39]} 28. Qf4 {[%emt 0:09:18]} Ne4 {[%emt 0:02:30]} 29. g5 {[%emt 0:00:35]} Qd6 {[%emt 0:01:21]} 30. Qe3 {[%emt 0:02:00]} e5 {[%emt 0:01:08]} 31. Bxe4 {[%emt 0:03:18]} dxe4 {[%emt 0:00:10]} 32. R3f2 {[%emt 0:02:01]} Qe6 {[%emt 0:01:44]} 33. b4 {[%emt 0:02:44]} Qb3 {[%emt 0:05:52]} 34. Re1 {[%emt 0:02:08]} Qe6 {[%emt 0:01:47]} 35. h3 {[%emt 0:01:36]} Bd5 {[%emt 0:01:42]} 36. Kh2 {[%emt 0:01:45]} exd4 {[%emt 0:00:57]} 37. cxd4 {[%emt 0:00:46]} Rc7 {[%emt 0:00:31]} 38. Rc1 {[%emt 0:03:28]} Qd6+ {[%emt 0:00:48]} 39. Kg1 {[%emt 0:01:55]} Rxc1+ {[%emt 0:00:14]} 40. Bxc1 {[%emt 0:00:28]} Rc7 {[%emt 0:00:14]} 41. Bb2 {[%emt 0:01:31]} Kf7 {[%emt 0:00:21]} 42. Bc3 {[%emt 0:03:43]} Rc4 {[%emt 0:00:47]} 43. Be1 {[%emt 0:01:00]} Rc8 {[%emt 0:00:42]} 44. Rd2 {[%emt 0:00:20]} Qe6 {[%emt 0:02:53]} 45. Kh2 {[%emt 0:00:51]} Qd7 {[%emt 0:00:34]} 46. Re2 {[%emt 0:02:42]} Qf5 {[%emt 0:00:56]} 47. Rf2 {[%emt 0:00:26]} Qe6 {[%emt 0:00:10]} 48. Qf4 {[%emt 0:01:44]} Qd7 {[%emt 0:01:16]} 49. Qh4 {[%emt 0:01:22]} Qc7+ {[%emt 0:00:18]} 50. Kg1 {[%emt 0:00:23]} Rh8 {[%emt 0:00:15]} 51. Re2 {[%emt 0:01:03]} Qc6 {[%emt 0:01:04]} 52. Qh6 {[%emt 0:00:31]} Qe8 {[%emt 0:01:16]} 53. Qg7+ {[%emt 0:00:33]} Ke6 {[%emt 0:00:15]} 54. f7 {[%emt 0:00:59]} 1-0

[Event "7. Arber-Senioren-Cup 2019"]
[Site "Bodenmais"]
[Date "2019.07.29"]
[Round "3.18"]
[White "Peglau, Markus"]
[Black "Steiger, Michael"]
[Result "1/2-1/2"]
[ECO "E67"]
[WhiteElo "1849"]
[BlackElo "2016"]
[Annotator "NA"]
[PlyCount "26"]
[EventDate "2019.07.27"]
[EventType "swiss"]
[EventCountry "GER"]
[SourceTitle "playchess.com"]
[Source "ChessBase"]
[SourceQuality "1"]
[TimeControl "5400+30"]

1. d4 {[%emt 0:00:00]} Nf6 {[%emt 0:00:00]} 2. Nf3 {[%emt 0:00:00]} g6 {[%emt 0:00:00]} 3. c4 {[%emt 0:00:00]} Bg7 {[%emt 0:00:00]} 4. Nc3 {[%emt 0:00:00]} O-O {[%emt 0:00:00]} 5. g3 {[%emt 0:00:00]} d6 {[%emt 0:00:00]} 6. Bg2 {[%emt 0:00:00]} Nbd7 {[%emt 0:00:00]} 7. O-O {[%emt 0:00:00]} e5 {[%emt 0:00:00]} 8. b3 {[%emt 0:00:00]} exd4 {[%emt 0:00:00]} 9. Nxd4 {[%emt 0:00:00]} Nc5 {[%emt 0:00:00]} 10. Bb2 {[%emt 0:00:00]} Re8 {[%emt 0:00:00]} 11. Re1 {[%emt 0:00:00]} c6 {[%emt 0:00:00]} 12. Qd2 {[%emt 0:00:00]} Nfe4 {[%emt 0:00:00]} 13. Nxe4 {[%emt 0:00:00]} Nxe4 {[%emt 0:00:00]} 1/2-1/2

[Event "7. Arber-Senioren-Cup 2019"]
[Site "Bodenmais"]
[Date "2019.07.29"]
[Round "3.19"]
[White "Zwetz, Anita"]
[Black "Gerl, Hans"]
[Result "1-0"]
[ECO "A46"]
[WhiteElo "1828"]
[BlackElo "1955"]
[Annotator "NA"]
[PlyCount "67"]
[EventDate "2019.07.27"]
[EventType "swiss"]
[EventCountry "GER"]
[SourceTitle "playchess.com"]
[Source "ChessBase"]
[SourceQuality "1"]
[TimeControl "5400+30"]

1. d4 {[%emt 0:00:00]} Nf6 {[%emt 0:00:00]} 2. Bg5 {[%emt 0:00:00]} e6 {[%emt 0:00:00]} 3. Nf3 {[%emt 0:00:00]} b6 {[%emt 0:00:00]} 4. e3 {[%emt 0:00:00]} Bb7 {[%emt 0:00:00]} 5. Nbd2 {[%emt 0:00:00]} d5 {[%emt 0:00:00]} 6. Ne5 {[%emt 0:00:00]} Be7 {[%emt 0:00:00]} 7. Bb5+ {[%emt 0:00:00]} c6 {[%emt 0:00:00]} 8. Bd3 {[%emt 0:00:00]} Nbd7 {[%emt 0:00:00]} 9. f4 {[%emt 0:00:00]} O-O {[%emt 0:00:00]} 10. Qf3 {[%emt 0:00:00]} c5 {[%emt 0:00:00]} 11. c3 {[%emt 0:00:00]} c4 {[%emt 0:00:00]} 12. Bc2 {[%emt 0:00:00]} b5 {[%emt 0:00:00]} 13. Qh3 {[%emt 0:00:00]} g6 {[%emt 0:00:00]} 14. Qh4 {[%emt 0:00:00]} Re8 {[%emt 0:00:00]} 15. Ndf3 {[%emt 0:16:35]} Nxe5 {[%emt 0:00:00]} 16. fxe5 {[%emt 0:00:40]} Nd7 {[%emt 0:05:43]} 17. O-O {[%emt 0:02:13]} Nf8 {[%emt 0:05:29]} 18. Bf6 {[%emt 0:01:47]} h5 {[%emt 0:04:59]} 19. Ng5 {[%emt 0:04:01]} Bxf6 {[%emt 0:05:14]} 20. Rxf6 {[%emt 0:02:48]} Re7 {[%emt 0:01:09]} 21. Raf1 {[%emt 0:00:11]} Qc7 {[%emt 0:01:28]} 22. Rxf7 {[%emt 0:04:52]} Bc6 {[%emt 0:02:24]} 23. Rxe7 {[%emt 0:03:39]} Qxe7 {[%emt 0:00:21]} 24. Rf7 {[%emt 0:00:08]} Qd8 {[%emt 0:01:56]} 25. Rf6 {[%emt 0:07:48]} Qe8 {[%emt 0:03:50]} 26. g4 {[%emt 0:00:42]} a5 {[%emt 0:00:28]} 27. gxh5 {[%emt 0:00:38]} gxh5 {[%emt 0:00:31]} 28. Qg3 {[%emt 0:01:15]} h4 {[%emt 0:03:12]} 29. Qg4 {[%emt 0:00:49]} Ra7 {[%emt 0:00:25]} 30. Nxe6+ {[%emt 0:05:09]} Kh8 {[%emt 0:00:24]} 31. Rxf8+ {[%emt 0:02:36]} Qxf8 {[%emt 0:00:30]} 32. Nxf8 {[%emt 0:00:01]} Rg7 {[%emt 0:00:25]} 33. Ng6+ {[%emt 0:00:02]} Kg8 {[%emt 0:00:51]} 34. Qe6+ 1-0

[Event "7. Arber-Senioren-Cup 2019"]
[Site "Bodenmais"]
[Date "2019.07.29"]
[Round "3.20"]
[White "Kirschner, Torsten"]
[Black "Halli, Gerhard"]
[Result "1/2-1/2"]
[ECO "D02"]
[WhiteElo "1767"]
[BlackElo "1955"]
[Annotator "NA"]
[PlyCount "36"]
[EventDate "2019.07.27"]
[EventType "swiss"]
[EventCountry "GER"]
[SourceTitle "playchess.com"]
[Source "ChessBase"]
[SourceQuality "1"]
[TimeControl "5400+30"]

1. d4 {[%emt 0:00:00]} d5 {[%emt 0:00:00]} 2. Nf3 {[%emt 0:00:00]} Nf6 {[%emt 0:00:00]} 3. g3 {[%emt 0:00:00]} e6 {[%emt 0:00:00]} 4. Bg2 {[%emt 0:00:00]} c5 {[%emt 0:00:00]} 5. c4 {[%emt 0:00:00]} Nc6 {[%emt 0:00:00]} 6. cxd5 {[%emt 0:00:00]} exd5 {[%emt 0:00:00]} 7. Nc3 {[%emt 0:00:00]} Be6 {[%emt 0:00:00]} 8. O-O {[%emt 0:00:00]} cxd4 {[%emt 0:00:00]} 9. Nb5 {[%emt 0:00:00]} Qb6 {[%emt 0:00:00]} 10. Nbxd4 {[%emt 0:00:00]} Bc5 {[%emt 0:00:00]} 11. Nb3 {[%emt 0:00:00]} O-O {[%emt 0:00:00]} 12. Nxc5 {[%emt 0:00:00]} Qxc5 {[%emt 0:00:00]} 13. Be3 {[%emt 0:00:00]} Qb4 {[%emt 0:00:00]} 14. b3 {[%emt 0:00:00]} h6 {[%emt 0:01:33]} 15. Rc1 {[%emt 0:00:00]} Rfd8 {[%emt 0:01:16]} 16. Nd4 {[%emt 0:01:47]} Nxd4 {[%emt 0:01:17]} 17. Qxd4 {[%emt 0:02:16]} Qxd4 {[%emt 0:03:13]} 18. Bxd4 {[%emt 0:03:48]} Ne8 {[%emt 0:00:43]} 1/2-1/2

[Event "7. Arber-Senioren-Cup 2019"]
[Site "Bodenmais"]
[Date "2019.07.29"]
[Round "3.21"]
[White "Schmidt, Matthias"]
[Black "Schuster, Herbert"]
[Result "0-1"]
[ECO "E05"]
[WhiteElo "2020"]
[BlackElo "1774"]
[Annotator "NA"]
[PlyCount "126"]
[EventDate "2019.07.27"]
[EventType "swiss"]
[EventCountry "GER"]
[SourceTitle "playchess.com"]
[Source "ChessBase"]
[SourceQuality "1"]
[TimeControl "5400+30"]

1. Nf3 {[%emt 0:00:00]} e6 {[%emt 0:00:00]} 2. d4 {[%emt 0:00:00]} Nf6 {[%emt 0:00:00]} 3. g3 {[%emt 0:00:00]} d5 {[%emt 0:00:00]} 4. Bg2 {[%emt 0:00:00]} Be7 {[%emt 0:00:00]} 5. c4 {[%emt 0:00:00]} dxc4 {[%emt 0:00:00]} 6. Qc2 {[%emt 0:00:00]} Nbd7 {[%emt 0:00:00]} 7. O-O {[%emt 0:00:00]} Nb6 {[%emt 0:00:00]} 8. Nbd2 {[%emt 0:00:00]} Bd7 {[%emt 0:00:00]} 9. Ne5 {[%emt 0:00:00]} Rb8 {[%emt 0:00:00]} 10. Ndxc4 {[%emt 0:00:00]} Nxc4 {[%emt 0:00:00]} 11. Qxc4 {[%emt 0:00:00]} O-O {[%emt 0:00:00]} 12. Rd1 {[%emt 0:00:00]} c6 {[%emt 0:00:00]} 13. e4 {[%emt 0:00:00]} Be8 {[%emt 0:00:00]} 14. Bf4 {[%emt 0:00:00]} Rc8 {[%emt 0:00:00]} 15. b4 {[%emt 0:00:00]} Qb6 {[%emt 0:00:00]} 16. Rab1 {[%emt 0:03:13]} Nd7 {[%emt 0:00:00]} 17. d5 {[%emt 0:06:31]} Nxe5 {[%emt 0:00:00]} 18. Bxe5 {[%emt 0:00:03]} exd5 {[%emt 0:00:00]} 19. exd5 {[%emt 0:00:12]} Bd7 {[%emt 0:00:00]} 20. d6 {[%emt 0:01:31]} Bg5 {[%emt 0:00:00]} 21. Bd4 {[%emt 0:02:19]} Qd8 {[%emt 0:00:00]} 22. a4 {[%emt 0:07:38]} Be6 {[%emt 0:00:00]} 23. Qc3 {[%emt 0:00:25]} Bf6 {[%emt 0:00:00]} 24. Rd2 {[%emt 0:03:31]} Bxd4 {[%emt 0:00:00]} 25. Qxd4 {[%emt 0:00:33]} Qd7 {[%emt 0:00:00]} 26. a5 {[%emt 0:03:09]} a6 {[%emt 0:00:00]} 27. Rc1 {[%emt 0:02:02]} Rcd8 {[%emt 0:00:00]} 28. Qb6 {[%emt 0:02:40]} Rc8 {[%emt 0:06:29]} 29. h3 {[%emt 0:03:25]} g6 {[%emt 0:01:44]} 30. Kh2 {[%emt 0:00:15]} Rb8 {[%emt 0:05:47]} 31. h4 {[%emt 0:01:27]} Kg7 {[%emt 0:01:36]} 32. Qd4+ {[%emt 0:00:36]} f6 {[%emt 0:00:54]} 33. Rc5 {[%emt 0:02:59]} Rbd8 {[%emt 0:01:31]} 34. h5 {[%emt 0:05:38]} Qf7 {[%emt 0:00:51]} 35. Re2 {[%emt 0:05:17]} Rfe8 {[%emt 0:03:33]} 36. Bf3 {[%emt 0:03:51]} Bd7 {[%emt 0:01:18]} 37. hxg6 {[%emt 0:04:14]} hxg6 {[%emt 0:00:50]} 38. Rcc2 {[%emt 0:02:35]} Rxe2 {[%emt 0:04:12]} 39. Rxe2 {[%emt 0:00:49]} Re8 {[%emt 0:01:03]} 40. Rxe8 {[%emt 0:03:02]} Qxe8 {[%emt 0:00:21]} 41. Qb6 {[%emt 0:03:33]} Qb8 {[%emt 0:02:18]} 42. Kg2 Qc8 {[%emt 0:02:33]} 43. Kf1 {[%emt 0:06:16]} Bh3+ {[%emt 0:02:25]} 44. Bg2 {[%emt 0:01:43]} Bd7 {[%emt 0:00:43]} 45. Qe3 {[%emt 0:01:00]} Qf8 {[%emt 0:03:16]} 46. Qd4 {[%emt 0:00:59]} Qe8 {[%emt 0:02:44]} 47. Qb6 {[%emt 0:01:04]} Qb8 {[%emt 0:01:31]} 48. Qc5 {[%emt 0:04:51]} Qe8 {[%emt 0:00:53]} 49. f4 {[%emt 0:01:05]} Kf7 {[%emt 0:03:15]} 50. Kf2 {[%emt 0:00:22]} Bg4 {[%emt 0:03:00]} 51. Bf1 {[%emt 0:01:30]} Qe4 {[%emt 0:03:26]} 52. Bc4+ {[%emt 0:03:45]} Kg7 {[%emt 0:00:48]} 53. d7 {[%emt 0:05:59]} Qf3+ {[%emt 0:03:16]} 54. Ke1 {[%emt 0:00:55]} Qxg3+ {[%emt 0:00:32]} 55. Qf2 {[%emt 0:02:46]} Qxf2+ {[%emt 0:00:22]} 56. Kxf2 {[%emt 0:00:03]} Bxd7 {[%emt 0:00:14]} 57. Ke3 {[%emt 0:00:13]} g5 {[%emt 0:00:53]} 58. Kd4 {[%emt 0:00:33]} g4 {[%emt 0:02:32]} 59. Kc5 {[%emt 0:00:12]} g3 {[%emt 0:00:48]} 60. Bf1 {[%emt 0:00:06]} Bf5 {[%emt 0:00:44]} 61. Kb6 {[%emt 0:00:31]} c5 {[%emt 0:04:13]} 62. bxc5 {[%emt 0:02:03]} Be4 {[%emt 0:00:15]} 63. c6 {[%emt 0:00:18]} Bxc6 0-1

[Event "7. Arber-Senioren-Cup 2019"]
[Site "Bodenmais"]
[Date "2019.07.29"]
[Round "3.22"]
[White "Wacker, Manfred"]
[Black "Waltenberger, Udo"]
[Result "0-1"]
[ECO "D85"]
[WhiteElo "1741"]
[BlackElo "1986"]
[Annotator "NA"]
[PlyCount "80"]
[EventDate "2019.07.27"]
[EventType "swiss"]
[EventCountry "GER"]
[SourceTitle "playchess.com"]
[Source "ChessBase"]
[SourceQuality "1"]
[TimeControl "5400+30"]

1. d4 {[%emt 0:00:00]} Nf6 {[%emt 0:00:00]} 2. c4 {[%emt 0:00:00]} g6 {[%emt 0:00:00]} 3. Nc3 {[%emt 0:00:00]} d5 {[%emt 0:00:00]} 4. cxd5 {[%emt 0:00:00]} Nxd5 {[%emt 0:00:00]} 5. e4 {[%emt 0:00:00]} Nxc3 {[%emt 0:00:00]} 6. bxc3 {[%emt 0:00:00]} Bg7 {[%emt 0:00:00]} 7. Nf3 {[%emt 0:00:00]} c5 {[%emt 0:00:00]} 8. Rb1 {[%emt 0:00:00]} O-O {[%emt 0:00:00]} 9. Be2 {[%emt 0:00:00]} b6 {[%emt 0:00:00]} 10. O-O {[%emt 0:00:00]} Bb7 {[%emt 0:00:00]} 11. e5 {[%emt 0:00:00]} cxd4 {[%emt 0:00:00]} 12. cxd4 {[%emt 0:00:00]} Nc6 {[%emt 0:00:00]} 13. Bb2 {[%emt 0:00:00]} Qd5 {[%emt 0:00:00]} 14. Qb3 {[%emt 0:00:00]} Qxb3 {[%emt 0:02:13]} 15. axb3 {[%emt 0:00:00]} Rfd8 {[%emt 0:01:06]} 16. Rfd1 {[%emt 0:00:00]} Nb4 {[%emt 0:03:58]} 17. Rbc1 {[%emt 0:00:00]} Rac8 {[%emt 0:01:58]} 18. Rxc8 {[%emt 0:04:35]} Rxc8 {[%emt 0:00:17]} 19. Rc1 {[%emt 0:00:09]} Rxc1+ {[%emt 0:05:28]} 20. Bxc1 {[%emt 0:00:14]} e6 {[%emt 0:01:52]} 21. Bg5 {[%emt 0:05:22]} Nc2 {[%emt 0:02:30]} 22. Bd1 {[%emt 0:05:23]} Bxf3 {[%emt 0:00:16]} 23. Bxc2 {[%emt 0:02:07]} Bd5 {[%emt 0:00:08]} 24. Be7 {[%emt 0:00:39]} Bf8 {[%emt 0:04:09]} 25. Bxf8 {[%emt 0:01:49]} Kxf8 {[%emt 0:00:01]} 26. b4 {[%emt 0:00:57]} Bc6 {[%emt 0:09:14]} 27. Kf1 {[%emt 0:02:10]} Ke7 {[%emt 0:01:40]} 28. g4 {[%emt 0:00:28]} h6 {[%emt 0:04:57]} 29. f4 {[%emt 0:02:43]} g5 {[%emt 0:03:15]} 30. f5 {[%emt 0:00:45]} f6 {[%emt 0:00:42]} 31. Kf2 {[%emt 0:02:05]} a5 {[%emt 0:00:37]} 32. bxa5 {[%emt 0:00:46]} bxa5 {[%emt 0:00:01]} 33. fxe6 {[%emt 0:02:39]} fxe5 {[%emt 0:01:05]} 34. Ke3 {[%emt 0:02:37]} Kxe6 {[%emt 0:05:51]} 35. Bb3+ {[%emt 0:01:23]} Bd5 {[%emt 0:00:21]} 36. Bc2 {[%emt 0:01:15]} Kd6 {[%emt 0:01:53]} 37. dxe5+ {[%emt 0:01:33]} Kxe5 {[%emt 0:00:02]} 38. Ba4 {[%emt 0:00:17]} Be6 {[%emt 0:01:07]} 39. h3 {[%emt 0:01:27]} Bd5 {[%emt 0:00:29]} 40. Bb5 {[%emt 0:00:56]} Be4 {[%emt 0:03:45] Kd4+} 0-1

[Event "7. Arber-Senioren-Cup 2019"]
[Site "Bodenmais"]
[Date "2019.07.29"]
[Round "3.23"]
[White "Bock, Ortwin"]
[Black "Meckel, Helmut"]
[Result "0-1"]
[ECO "C12"]
[WhiteElo "1938"]
[BlackElo "1804"]
[Annotator "NA"]
[PlyCount "88"]
[EventDate "2019.07.27"]
[EventType "swiss"]
[EventCountry "GER"]
[SourceTitle "playchess.com"]
[Source "ChessBase"]
[SourceQuality "1"]
[TimeControl "5400+30"]

1. d4 {[%emt 0:00:00]} e6 {[%emt 0:00:00]} 2. e4 {[%emt 0:00:00]} d5 {[%emt 0:00:00]} 3. Nc3 {[%emt 0:00:00]} Nf6 {[%emt 0:00:00]} 4. Bg5 {[%emt 0:00:00]} Bb4 {[%emt 0:00:00]} 5. e5 {[%emt 0:00:00]} h6 {[%emt 0:00:00]} 6. Bd2 {[%emt 0:00:00]} Bxc3 {[%emt 0:00:00]} 7. Bxc3 {[%emt 0:00:00]} Ne4 {[%emt 0:00:00]} 8. Qg4 {[%emt 0:00:00]} Qg5 {[%emt 0:00:00]} 9. Qxg5 {[%emt 0:00:00]} hxg5 {[%emt 0:00:00]} 10. Bd3 {[%emt 0:00:00]} Nxc3 {[%emt 0:00:00]} 11. bxc3 {[%emt 0:00:00]} Nd7 {[%emt 0:00:00]} 12. Nf3 {[%emt 0:00:00]} g4 {[%emt 0:00:00]} 13. Nd2 {[%emt 0:00:00]} f6 {[%emt 0:00:00]} 14. c4 {[%emt 0:00:00]} fxe5 {[%emt 0:00:00]} 15. cxd5 {[%emt 0:00:00]} exd5 {[%emt 0:00:00]} 16. Bg6+ {[%emt 0:00:00]} Ke7 {[%emt 0:00:00]} 17. dxe5 {[%emt 0:00:00]} Nxe5 {[%emt 0:00:00]} 18. Bd3 {[%emt 0:00:00]} c5 {[%emt 0:00:00]} 19. O-O {[%emt 0:02:13]} Nxd3 {[%emt 0:00:00]} 20. cxd3 {[%emt 0:00:02]} Bf5 {[%emt 0:00:00]} 21. d4 {[%emt 0:04:09]} c4 {[%emt 0:00:00]} 22. Rfe1+ {[%emt 0:01:20]} Kd6 {[%emt 0:00:00]} 23. Re5 {[%emt 0:01:12]} Bd7 {[%emt 0:00:00]} 24. f4 {[%emt 0:03:18]} gxf3 {[%emt 0:00:00]} 25. Nxf3 {[%emt 0:00:23]} Bg4 {[%emt 0:00:00]} 26. Rae1 {[%emt 0:03:16]} Kc6 {[%emt 0:00:00]} 27. Re7 {[%emt 0:02:37]} Bxf3 {[%emt 0:02:27]} 28. R1e6+ {[%emt 0:05:24]} Kb5 {[%emt 0:00:35]} 29. Rxb7+ {[%emt 0:01:01]} Ka5 {[%emt 0:00:31]} 30. gxf3 {[%emt 0:01:17]} Rh4 {[%emt 0:07:58]} 31. Rc6 {[%emt 0:09:06]} Rxd4 {[%emt 0:02:12]} 32. Rc5+ {[%emt 0:01:34]} Ka4 {[%emt 0:02:15]} 33. a3 {[%emt 0:07:47]} a5 {[%emt 0:02:16]} 34. Kg2 {[%emt 0:15:34]} Kxa3 {[%emt 0:01:23]} 35. Rcb5 {[%emt 0:02:55]} a4 {[%emt 0:00:38]} 36. Rb1 {[%emt 0:00:16]} Rd2+ {[%emt 0:01:16]} 37. Kg3 {[%emt 0:00:02]} Re8 {[%emt 0:01:45]} 38. Ra1+ {[%emt 0:11:28]} Ra2 {[%emt 0:01:16]} 39. Rd1 {[%emt 0:02:09]} Rd8 {[%emt 0:08:03]} 40. Rd4 {[%emt 0:04:25]} g5 {[%emt 0:03:07]} 41. h3 {[%emt 0:02:04]} Rb2 {[%emt 0:01:29]} 42. Ra7 {[%emt 0:00:52]} Kb3 {[%emt 0:02:26]} 43. Rd1 {[%emt 0:01:05]} a3 {[%emt 0:03:56]} 44. Ra1 {[%emt 0:00:36]} a2 {[%emt 0:00:48]} 0-1

[Event "7. Arber-Senioren-Cup 2019"]
[Site "Bodenmais"]
[Date "2019.07.29"]
[Round "3.24"]
[White "Mahnke, Ralf"]
[Black "Moser, Andreas"]
[Result "1/2-1/2"]
[ECO "E73"]
[WhiteElo "1925"]
[BlackElo "1693"]
[Annotator "NA"]
[PlyCount "58"]
[EventDate "2019.07.27"]
[EventType "swiss"]
[EventCountry "GER"]
[SourceTitle "playchess.com"]
[Source "ChessBase"]
[SourceQuality "1"]
[TimeControl "5400+30"]

1. d4 {[%emt 0:00:00]} Nf6 {[%emt 0:00:00]} 2. c4 {[%emt 0:00:00]} g6 {[%emt 0:00:00]} 3. Nc3 {[%emt 0:00:00]} Bg7 {[%emt 0:00:00]} 4. e4 {[%emt 0:00:00]} d6 {[%emt 0:00:00]} 5. Be2 {[%emt 0:00:00]} O-O {[%emt 0:00:00]} 6. Bg5 {[%emt 0:00:00]} h6 {[%emt 0:00:00]} 7. Bf4 {[%emt 0:00:00]} c6 {[%emt 0:00:00]} 8. Nf3 {[%emt 0:00:00]} Bg4 {[%emt 0:00:00]} 9. h3 {[%emt 0:00:00]} Bxf3 {[%emt 0:00:00]} 10. Bxf3 {[%emt 0:00:00]} Nbd7 {[%emt 0:00:00]} 11. O-O {[%emt 0:00:00]} e5 {[%emt 0:00:00]} 12. dxe5 {[%emt 0:00:00]} dxe5 {[%emt 0:00:00]} 13. Be3 {[%emt 0:00:00]} Re8 {[%emt 0:00:00]} 14. Qc2 {[%emt 0:00:00]} Qc7 {[%emt 0:00:00]} 15. Rad1 {[%emt 0:00:00]} b6 {[%emt 0:00:00]} 16. Rd2 {[%emt 0:00:00]} Nf8 {[%emt 0:00:00]} 17. Rfd1 {[%emt 0:00:00]} Red8 {[%emt 0:00:00]} 18. Qa4 {[%emt 0:00:00]} Rxd2 {[%emt 0:00:00]} 19. Rxd2 {[%emt 0:00:00]} Ne6 {[%emt 0:00:00]} 20. b4 {[%emt 0:00:00]} Rd8 {[%emt 0:00:00]} 21. Qd1 {[%emt 0:00:00]} Rxd2 {[%emt 0:00:00]} 22. Qxd2 {[%emt 0:00:00]} g5 {[%emt 0:00:00]} 23. Bd1 {[%emt 0:00:00]} Bf8 {[%emt 0:05:16]} 24. a3 {[%emt 0:00:00]} a5 {[%emt 0:02:18]} 25. bxa5 {[%emt 0:11:44]} bxa5 {[%emt 0:00:22]} 26. a4 {[%emt 0:00:25]} Bb4 {[%emt 0:01:23]} 27. f3 {[%emt 0:00:40]} Nd7 {[%emt 0:05:15]} 28. Qc2 {[%emt 0:01:24]} Bc5 {[%emt 0:01:20]} 29. Bxc5 Qd8 1/2-1/2

[Event "7. Arber-Senioren-Cup 2019"]
[Site "Bodenmais"]
[Date "2019.07.29"]
[Round "3.25"]
[White "Ketzscher, Roland"]
[Black "Otto, Klaus"]
[Result "1/2-1/2"]
[ECO "D43"]
[WhiteElo "1917"]
[BlackElo "1725"]
[Annotator "NA"]
[PlyCount "51"]
[EventDate "2019.07.27"]
[EventType "swiss"]
[EventCountry "GER"]
[SourceTitle "playchess.com"]
[Source "ChessBase"]
[SourceQuality "1"]
[TimeControl "5400+30"]

1. d4 {[%emt 0:00:00]} Nf6 {[%emt 0:00:00]} 2. Nf3 {[%emt 0:00:00]} d5 {[%emt 0:00:00]} 3. c4 {[%emt 0:00:00]} e6 {[%emt 0:00:00]} 4. Nc3 {[%emt 0:00:00]} c6 {[%emt 0:00:00]} 5. Bg5 {[%emt 0:00:00]} Be7 {[%emt 0:00:00]} 6. e3 {[%emt 0:00:00]} Nh5 {[%emt 0:00:00]} 7. Bxe7 {[%emt 0:00:00]} Qxe7 {[%emt 0:00:00]} 8. Rc1 {[%emt 0:00:00]} O-O {[%emt 0:00:00]} 9. Be2 {[%emt 0:00:00]} Nf6 {[%emt 0:00:00]} 10. O-O {[%emt 0:00:00]} h6 {[%emt 0:00:00]} 11. c5 {[%emt 0:00:00]} Nbd7 {[%emt 0:00:00]} 12. b4 {[%emt 0:00:00]} e5 {[%emt 0:00:00]} 13. dxe5 {[%emt 0:00:00]} Nxe5 {[%emt 0:00:00]} 14. Nd4 {[%emt 0:00:00]} Bg4 {[%emt 0:00:00]} 15. Bxg4 {[%emt 0:00:00]} Nexg4 {[%emt 0:00:00]} 16. h3 {[%emt 0:00:00]} Ne5 {[%emt 0:00:00]} 17. Nf5 {[%emt 0:00:00]} Qd7 {[%emt 0:00:00]} 18. Nd6 {[%emt 0:00:00]} Ne8 {[%emt 0:00:00]} 19. Nxe8 {[%emt 0:00:00]} Rfxe8 {[%emt 0:00:00]} 20. Ne2 {[%emt 0:00:00]} Qf5 {[%emt 0:00:33]} 21. Nd4 {[%emt 0:04:52]} Qg6 {[%emt 0:05:00]} 22. Qc2 {[%emt 0:04:27]} Qxc2 {[%emt 0:04:33]} 23. Rxc2 {[%emt 0:00:02]} g6 {[%emt 0:00:24]} 24. Rb1 {[%emt 0:01:05]} a6 {[%emt 0:01:22]} 25. a4 Nc4 26. Rb3 1/2-1/2

[Event "7. Arber-Senioren-Cup 2019"]
[Site "Bodenmais"]
[Date "2019.07.29"]
[Round "3.26"]
[White "Loibl, Johann"]
[Black "Schmid, Johann"]
[Result "1/2-1/2"]
[ECO "C01"]
[WhiteElo "1760"]
[BlackElo "1842"]
[Annotator "NA"]
[PlyCount "54"]
[EventDate "2019.07.27"]
[EventType "swiss"]
[EventCountry "GER"]
[SourceTitle "playchess.com"]
[Source "ChessBase"]
[SourceQuality "1"]
[TimeControl "5400+30"]

1. e4 {[%emt 0:00:00]} e6 {[%emt 0:00:00]} 2. d4 {[%emt 0:00:00]} d5 {[%emt 0:00:00]} 3. exd5 {[%emt 0:00:00]} exd5 {[%emt 0:00:00]} 4. Bd3 {[%emt 0:00:00]} Nc6 {[%emt 0:00:00]} 5. Nf3 {[%emt 0:00:00]} Bg4 {[%emt 0:00:00]} 6. c3 {[%emt 0:00:00]} Nf6 {[%emt 0:00:00]} 7. O-O {[%emt 0:00:00]} h6 {[%emt 0:00:00]} 8. Re1+ {[%emt 0:00:00]} Be7 {[%emt 0:00:00]} 9. h3 {[%emt 0:00:00]} Be6 {[%emt 0:00:00]} 10. Bf4 {[%emt 0:00:00]} O-O {[%emt 0:00:00]} 11. Qc2 {[%emt 0:00:00]} Bd6 {[%emt 0:00:00]} 12. Ne5 {[%emt 0:00:00]} Re8 {[%emt 0:00:00]} 13. Nd2 {[%emt 0:00:00]} Bxe5 {[%emt 0:00:00]} 14. dxe5 {[%emt 0:00:00]} Nd7 {[%emt 0:05:08]} 15. Nf3 {[%emt 0:00:18]} Ne7 {[%emt 0:12:23]} 16. Nd4 {[%emt 0:08:55]} Nf8 {[%emt 0:03:02]} 17. Rad1 {[%emt 0:06:02]} a6 {[%emt 0:03:29]} 18. Nxe6 {[%emt 0:09:42]} Nxe6 {[%emt 0:00:41]} 19. Be3 {[%emt 0:07:31]} c5 {[%emt 0:11:32]} 20. f4 {[%emt 0:01:40]} Rc8 {[%emt 0:10:46]} 21. f5 {[%emt 0:03:04]} Nf8 {[%emt 0:02:39]} 22. f6 {[%emt 0:01:45]} Neg6 {[%emt 0:01:51]} 23. fxg7 {[%emt 0:03:48]} Kxg7 {[%emt 0:00:10]} 24. Qd2 {[%emt 0:02:54]} Qh4 {[%emt 0:01:46]} 25. Bf2 {[%emt 0:19:11]} Qf4 {[%emt 0:02:59]} 26. Be3 {[%emt 0:01:33]} Qh4 {[%emt 0:00:24]} 27. Bf5 Rc7 1/2-1/2